Cogmind - Beta 13 @@@ ROGUE MODE // 2024.04.15 @ 22:03:52 Player: Pitifulpancake Result: Destroyed by G-47 Trooper with Particle Gun Performance ------------- Evolutions (3) 1500 Regions Visited (9) 1800 Robots Destroyed (128) 640 Value Destroyed (3892) 3892 Prototype IDs (7) 140 Alien Tech Used (0) 0 Bonus (311) 311 TOTAL SCORE: 8283 Bonus ------- High Alert Combat Kills 11 Aligned with FarCom 300 Cogmind --------- Core Integrity 0/700 Matter 213/300 Energy 100/100 System Corruption 30% Temperature Cool (9) Movement Core (850) Ox16 Location -7/Lower Caves Parts ------- > --- POWER (1) -------- (None) > --- PROPULSION (4) --- (None) > --- UTILITY (5) ------ High-capacity Storage Unit Layered Medium Armor Plating > --- WEAPON (3) ------- Axe > --- INVENTORY (20) --- Improved Deuterium Engine Reinforced Deuterium Engine Aluminum Leg Carbon-fiber Leg Carbon-fiber Leg Advanced Power Amplifier High-capacity Matter Pod (200) Improved Sensor Array Advanced Targeting Computer Precision Matter Filter Hacking Suite Tractor Beam Recalibrator Remote Datajack Peak State ------------ > --- POWER ------------ Heavy Ion Engine > --- PROPULSION ------- Armored Huge Wheel Armored Huge Wheel > --- UTILITY ---------- Cooling System High-capacity Storage Unit Improved Melee Analysis Suite Improved Propulsion Shielding Layered Medium Armor Plating > --- WEAPON ----------- Gauss Rifle Gauss Rifle Axe > --- INVENTORY -------- Improved Deuterium Engine Reinforced Deuterium Engine Carbon-fiber Leg Carbon-fiber Leg Advanced Power Amplifier High-capacity Matter Pod Improved Sensor Array Advanced Targeting Computer Precision Matter Filter Improved Light Armor Plating Improved Light Armor Plating Layered Medium Armor Plating Advanced Force Field Hacking Suite Tractor Beam Recalibrator Particle Cannon Minigun Remote Datajack [Rating: 52] Favorites ----------- Power Ion Engine Engine Ion Engine Power Core Light Nuclear Core Propulsion Improved Aluminum Leg Treads Light Treads Leg Improved Aluminum Leg Wheel Armored Huge Wheel Utility High-capacity Storage Unit Device Cooling System Storage High-capacity Storage Unit Processor Advanced Targeting Computer Hackware Hacking Suite Protection Hardened Medium Armor Plating Weapon Improved Assault Rifle Energy Cannon Particle Cannon Ballistic Gun Improved Assault Rifle Launcher Grenade Launcher Special Weapon Remote Datajack Slashing Weapon Axe Special Melee Weapon Datajack Build | -11 -10 -9 -9 -9 -8 -8 -7 -7 -7 ------- Run | Yrd Mat Mat Min Exi Min Mat Fac Low Low Slots Evolved 6 | . . 2 . . . 2 2 . . Power . | . . . . . . . . . . Propulsion 2 | . . 2 . . . . . . . Utility 3 | . . . . . . 2 1 . . Weapon 1 | . . . . . . . 1 . . Parts Attached 178 | 9 23 2 . 1 . 63 51 21 8 Power 16 | 1 4 . . . . 7 2 2 . Engine 13 | 1 4 . . . . 4 2 2 . Core 3 | . . . . . . 3 . . . Reactor . | . . . . . . . . . . Propulsion 59 | 4 5 2 . . . 25 21 2 . Treads 18 | 2 2 . . . . 7 7 . . Leg 29 | . 3 2 . . . 14 10 . . Wheel 12 | 2 . . . . . 4 4 2 . Hover . | . . . . . . . . . . Flight . | . . . . . . . . . . Utility 45 | 2 3 . . . . 14 16 6 4 Device 15 | 1 1 . . . . 4 6 2 1 Storage 5 | 1 1 . . . . 1 1 1 . Processor 4 | . . . . . . 2 2 . . Hackware 2 | . 1 . . . . 1 . . . Protection 19 | . . . . . . 6 7 3 3 Artifact . | . . . . . . . . . . Weapon 58 | 2 11 . . 1 . 17 12 11 4 Energy Gun . | . . . . . . . . . . Energy Cannon 3 | . . . . . . 1 . . 2 Ballistic Gun 38 | 2 9 . . 1 . 12 5 7 2 Ballistic Cannon . | . . . . . . . . . . Launcher 1 | . 1 . . . . . . . . Special Weapon 3 | . . . . . . . 1 2 . Impact Weapon . | . . . . . . . . . . Slashing Weapon 10 | . . . . . . 2 6 2 . Piercing Weapon . | . . . . . . . . . . Special Melee Weapon 3 | . 1 . . . . 2 . . . Unidentified Prototypes 4 | . 1 . . . . 2 1 . . Parts Lost 51 | . 1 . . . . 12 13 11 14 Power 3 | . . . . . . 1 1 . 1 Propulsion 13 | . . . . . . 5 4 2 2 Utility 20 | . 1 . . . . 2 5 5 7 Weapon 15 | . . . . . . 4 3 4 4 Highest Loss Streak 11 | . 1 . . . . 8 11 7 11 To Critical Strikes 1 | . . . . . . . 1 . . Average Slot Usage (%) 95 | . 96 100 100 99 100 97 96 78 77 Engine 8 | . 14 11 11 11 11 5 6 7 7 Treads 6 | . 9 . . . . 6 10 . . Leg 20 | . 11 44 44 44 44 22 17 . . Wheel 4 | . 5 . . . . 6 . 14 13 Device 3 | . 4 . . . . 2 4 4 7 Storage 9 | . 14 11 11 11 11 9 7 7 7 Processor 5 | . . . . . . 9 10 7 5 Hackware 7 | . 6 11 11 11 11 11 5 . . Protection 4 | . . . . . . 2 7 13 12 Ballistic Gun 18 | . 25 22 22 21 22 14 16 17 12 Slashing Weapon 2 | . . . . . . 1 5 3 7 Naked Turns . | . . . . . . . . . . Heaviest Build 83 | 12 51 49 49 49 49 63 71 79 83 Greatest Support 80 | 40 40 52 52 52 52 80 80 56 56 Greatest Overweight (x) 27 | 1 16 . . . . 5 3 1 27 Average Overweight (x) . | . . . . . . . . 1 1 Largest Inventory Capacity 20 | 8 20 20 20 20 20 20 20 20 20 Average Capacity 19 | 7 18 20 20 20 20 20 20 20 20 Most Carried 20 | 5 20 20 20 20 20 20 20 20 20 Average Carried 17 | 2 14 19 19 19 20 19 18 15 18 Final Capacity 20 | 8 20 20 20 20 20 20 20 20 20 Final Carried 20 | 5 20 20 20 20 20 20 20 19 14 Class Distribution -------------------- 55% | Mutant 26% | Scavenger-Mutant 8% | Hacker-Mutant 3% | Scavenger-Skirmisher Dominant Class ---------------- Mutant | -10/Materials Mutant | -9/Materials Mutant | -9/Mines Mutant | -9/Exiles Mutant | -8/Mines Scavenger-Mutant | -8/Materials Scavenger-Mutant | -7/Factory Mutant | -7/Lower Caves Mutant | -7/Lower Caves Resources | -11 -10 -9 -9 -9 -8 -8 -7 -7 -7 ----------- Run | Yrd Mat Mat Min Exi Min Mat Fac Low Low Matter Collected 4332 | 324 554 105 24 . 124 1336 1130 615 120 Remotely 284 | 141 89 . . . . . . 54 . Salvage Created 5421 | 106 704 11 . . 146 1486 1538 935 495 Parts 287 | 5 49 2 . . 6 83 82 34 26 Haulers Intercepted 6 | . 1 . . . . 3 1 1 . Recyclers Shooed 15 | . 1 1 . . 3 6 4 . . Parts Field Recycled . | . . . . . . . . . . Retrieved Matter . | . . . . . . . . . . Parts Self-Destructed 59 | . . . . . . . . 33 26 Prevented . | . . . . . . . . . . Kills | -11 -10 -9 -9 -9 -8 -8 -7 -7 -7 ------- Run | Yrd Mat Mat Min Exi Min Mat Fac Low Low Combat Hostiles Destroyed 88 | . 15 1 . . 4 25 15 17 11 Melee 19 | . . . . . . 1 10 4 4 Guns 65 | . 15 1 . . 4 23 5 13 4 Cannons 3 | . . . . . . 1 . . 2 Classes Destroyed 15 | 3 6 . . . . 4 2 . . Worker 5 | 2 . . . . . 1 2 . . Builder 6 | . 1 . . . . 3 2 . . Tunneler 2 | 1 . . . . . . 1 . . Hauler 6 | . 1 . . . . 3 1 1 . Recycler 13 | 1 1 . . . 1 2 8 . . Mechanic 1 | . . . . . . 1 . . . Operator 3 | . 2 . . . . 1 . . . Watcher 4 | . 3 . . . . . 1 . . Swarmer 21 | . 6 1 . . 4 4 . 2 4 Grunt 42 | . 9 . . . . 13 4 11 5 Brawler 4 | . . . . . . 1 1 2 . Duelist 3 | . . . . . . . 2 . 1 Sentry 10 | . . . . . . 6 1 2 1 Hunter 3 | . . . . . . 1 2 . . Programmer 5 | . . . . . . . 5 . . Best Kill Streak 7 | 3 3 1 . . 3 6 7 7 3 Combat Bots Only 7 | . 3 1 . . 3 6 3 7 3 Max Kills in Single Turn 2 | 1 1 1 . . 2 2 1 1 1 Gunslinging 1 | . . . . . 1 . . . . Exploded . | . . . . . . . . . . Melee 1 | . . . . . . 1 1 1 1 Uniques/NPCs Destroyed . | . . . . . . . . . . Combat | -11 -10 -9 -9 -9 -8 -8 -7 -7 -7 -------- Run | Yrd Mat Mat Min Exi Min Mat Fac Low Low Hostile Shots Fired 840 | . 71 . 5 . 17 241 166 146 194 Missed 192 | . 21 . 2 . 5 50 44 31 39 Damage Taken 10206 | . 637 . 41 . 92 2992 1962 2079 2403 Core 1264 | . 162 . . . 24 376 244 203 255 Absorbed by Shields 91 | . . . . . . . . . 91 Redirected to Shielding 101 | . . . . . . . . 10 91 Regen/Repaired (Parts) 237 | . 48 . . . . 189 . . . Core Remaining (%) 65 | 100 35 . . . 94 31 . . . Volleys Fired 375 | 10 78 6 3 . 20 134 53 45 26 Largest 3 | 2 2 2 2 . 2 2 3 3 2 Hottest 96 | 40 46 40 40 . 40 88 74 76 96 Shots Fired 712 | 20 152 12 6 . 40 227 116 96 43 Gun 674 | 20 148 12 6 . 40 217 108 92 31 Cannon 22 | . . . . . . 10 . . 12 Launcher 4 | . 4 . . . . . . . . Special 12 | . . . . . . . 8 4 . Kinetic 674 | 20 148 12 6 . 40 217 108 92 31 Thermal 22 | . . . . . . 10 . . 12 Explosive 4 | . 4 . . . . . . . . Electromagnetic . | . . . . . . . . . . Robot Hit Streak 22 | 9 9 7 5 . 3 22 12 7 12 Robot Miss Streak 10 | 1 5 2 3 . 2 2 3 10 3 Penetration Max 1 | . . . . . . 1 1 . . Secondary Targets 8 | . . . . . 2 2 . 4 . Max Gunslinging Chain 1 | . . . . . 1 1 . 1 . Shots Hit Robots 552 | 14 93 9 3 . 16 172 124 79 42 Core Hits 217 | 6 37 2 . . 6 63 40 48 15 Critical Kills 2 | . 1 . . . . 1 . . . Critical Parts Destroyed 5 | 1 1 . . . . 1 1 . 1 Critical Strikes 16 | 1 2 . . . . 3 8 . 2 Destroy 7 | 1 2 . . . . 2 1 . 1 Sever 9 | . . . . . . 1 7 . 1 Melee Attacks 115 | . 5 . . . . 10 62 19 19 Impact . | . . . . . . . . . . Slashing 108 | . . . . . . 8 62 19 19 Piercing . | . . . . . . . . . . Sneak Attacks 23 | . 5 . . . . 2 15 1 . Combat Hostiles . | . . . . . . . . . . Follow-up Attacks 2 | . . . . . . . . 2 . Damage Inflicted 10027 | 152 968 133 69 . 216 3069 2892 1451 1077 Guns 6262 | 152 963 112 39 . 216 2620 739 1069 352 Cannons 375 | . . . . . . 172 . . 203 Explosions 69 | . . . . . . 69 . . . Melee 3254 | . . . . . . 197 2153 382 522 Ramming 67 | . 5 21 30 . . 11 . . . Kinetic 6262 | 152 963 112 39 . 216 2620 739 1069 352 Thermal 444 | . . . . . . 241 . . 203 Explosive . | . . . . . . . . . . Electromagnetic . | . . . . . . . . . . Impact . | . . . . . . . . . . Slashing 3254 | . . . . . . 197 2153 382 522 Piercing . | . . . . . . . . . . Highest Corruption 30 | . . . . . . . 28 30 30 Average Corruption 27 | . . . . . . . 22 29 30 Corruption Purged . | . . . . . . . . . . Corruption Blocked . | . . . . . . . . . . Effects 140 | . . . . . . . 46 59 35 Message Errors 30 | . . . . . . . 9 12 9 Matter Fused 31 | . . . . . . . 15 7 9 Heat Flow Errors 14 | . . . . . . . 4 7 3 Energy Discharges 18 | . . . . . . . 2 13 3 Parts Rejected 2 | . . . . . . . . 1 1 Parts Fused 1 | . . . . . . . . . 1 Data Loss (minor) 15 | . . . . . . . 6 6 3 Data Loss (major) 4 | . . . . . . . 2 1 1 Misfires 8 | . . . . . . . 5 3 . Alerts 1 | . . . . . . . . 1 . Misdirections 2 | . . . . . . . . 1 1 Weapon Failures 14 | . . . . . . . 3 7 4 Overload Shots . | . . . . . . . . . . Overflow Damage 310 | . . . . . . 41 244 . 25 Projectiles 25 | . . . . . . . . . 25 Explosions 17 | . . . . . . 17 . . . Melee 268 | . . . . . . 24 244 . . Knockbacks 2 | . . 1 1 . . . . . . Impact 2 | . . 1 1 . . . . . . Kinetic . | . . . . . . . . . . Secondary . | . . . . . . . . . . Self-Inflicted Damage 98 | . 25 . . . . 73 . . . Shots 4 | . 3 . . . . 1 . . . Rammed . | . . . . . . . . . . Targets Rammed 10 | . 3 2 4 . . 1 . . . Kicked 9 | . 2 2 4 . . 1 . . . Crushed 1 | . 1 . . . . . . . . Highest Temperature 468 | . 25 . . . . 468 273 249 254 Average Temperature 111 | . 10 . . . . 199 72 101 48 Received Heat Transfer 3157 | . 204 . 24 . . 1332 36 864 697 Effects 12 | . . . . . . 11 . 1 . Shutdowns 1 | . . . . . . 1 . . . Energy Bleed 2 | . . . . . . 1 . 1 . Interference 5 | . . . . . . 5 . . . Matter Decay 3 | . . . . . . 3 . . . Damage (minor) 1 | . . . . . . 1 . . . Siege Activations . | . . . . . . . . . . Robots Corrupted . | . . . . . . . . . . Combat Hostiles . | . . . . . . . . . . Parts Fried . | . . . . . . . . . . Impact Corruptions . | . . . . . . . . . . Robots Melted 1 | . . . . . . . . . 1 Combat Hostiles 1 | . . . . . . . . . 1 Parts Melted 3 | . . . . . . . . . 3 Heat Transferred 766 | . . . . . . 396 . . 370 Parts Sabotaged . | . . . . . . . . . . Parts Stolen . | . . . . . . . . . . Parts Stripped . | . . . . . . . . . . Power Chain Reactions . | . . . . . . . . . . Alert | -11 -10 -9 -9 -9 -8 -8 -7 -7 -7 ------- Run | Yrd Mat Mat Min Exi Min Mat Fac Low Low Peak Influence 408 | 20 223 110 42 . 125 408 277 . . Initial 180 | . 13 90 42 . . . 180 . . Average 95 | 4 90 97 30 . 94 108 101 . . Maximum Alert Level 2 | . 1 . . . . 2 1 . . Low Security (%) 88 | 100 90 100 100 . 100 80 90 . . Level 1 10 | . 9 . . . . 16 9 . . Level 2 1 | . . . . . . 3 . . . Level 3 . | . . . . . . . . . . Level 4 . | . . . . . . . . . . Level 5 . | . . . . . . . . . . High Security . | . . . . . . . . . . Max Security . | . . . . . . . . . . Squads Dispatched 17 | . 3 1 . . . 6 7 . . Investigation 5 | . 1 . . . . 3 1 . . Extermination 6 | . . . . . . . 6 . . Reinforcement 6 | . 2 1 . . . 3 . . . Assault . | . . . . . . . . . . Garrison . | . . . . . . . . . . Intercept . | . . . . . . . . . . Searches Triggered . | . . . . . . . . . . Construction Impeded . | . . . . . . . . . . Haulers Reinforced . | . . . . . . . . . . Active Scanning Responses . | . . . . . . . . . . Cargo Convoy Interrupts . | . . . . . . . . . . Stealth | -11 -10 -9 -9 -9 -8 -8 -7 -7 -7 --------- Run | Yrd Mat Mat Min Exi Min Mat Fac Low Low Distress Signals 11 | . 4 2 . . 1 4 . . . Communications Jammed . | . . . . . . . . . . Distress Signals . | . . . . . . . . . . Times Spotted 130 | . 29 5 3 . 4 40 18 18 13 Peak Tracking Total 7 | . 4 3 3 . 4 7 4 6 7 Tactical Retreats 10 | . 2 . . . 1 3 4 . . Traps | -11 -10 -9 -9 -9 -8 -8 -7 -7 -7 ------- Run | Yrd Mat Mat Min Exi Min Mat Fac Low Low Traps Triggered 3 | . 1 . . . . 1 1 . . Indirectly . | . . . . . . . . . . Trap Hack Attempts . | . . . . . . . . . . Triggered . | . . . . . . . . . . Disarmed 4 | . 4 . . . . . . . . Reprogrammed . | . . . . . . . . . . Reused 2 | . . . . . . 2 . . . Traps Reconfigurated 22 | . . . . . . 12 10 . . Traps Extracted . | . . . . . . . . . . Installed . | . . . . . . . . . . Triggered 3 | . . . . . . 2 . . 1 Machines | -11 -10 -9 -9 -9 -8 -8 -7 -7 -7 ---------- Run | Yrd Mat Mat Min Exi Min Mat Fac Low Low Machines Disabled 13 | . 4 . . . 1 5 2 . 1 Max in Single Turn 2 | . 1 . . . 1 2 1 . 1 Machines Repaired . | . . . . . . . . . . Machines Dismantled . | . . . . . . . . . . Machines Sabotaged . | . . . . . . . . . . Overloaded Fab Kills . | . . . . . . . . . . Hacking | -11 -10 -9 -9 -9 -8 -8 -7 -7 -7 --------- Run | Yrd Mat Mat Min Exi Min Mat Fac Low Low Machines Accessed 28 | . 9 . . 4 . 8 7 . . Terminals 14 | . 6 . . . . 5 3 . . Fabricators 3 | . . . . . . . 3 . . Repair Stations 3 | . 1 . . . . 2 . . . Recycling Units 2 | . 2 . . . . . . . . Scanalyzers 2 | . . . . . . 1 1 . . Garrison Access . | . . . . . . . . . . Total Hacks 137 | . 33 . . 49 . 38 17 . . Successful 100 | . 18 . . 49 . 24 9 . . Failed 35 | . 15 . . . . 12 8 . . Catastrophic 8 | . 2 . . . . 1 5 . . Database Lockouts 2 | . . . . . . 2 . . . Manual 22 | . 7 . . 6 . 8 1 . . Terminals 56 | . 25 . . . . 25 6 . . Fabricators 6 | . . . . . . . 6 . . Repair Stations 10 | . 4 . . . . 6 . . . Recycling Units 4 | . 4 . . . . . . . . Scanalyzers 12 | . . . . . . 7 5 . . Garrison Access . | . . . . . . . . . . Terminal Hacks 76 | . 11 . . 49 . 12 4 . . Record 55 | . . . . 49 . 4 2 . . Robot Analysis 2 | . 1 . . . . . 1 . . Prototype ID Bank 3 | . 3 . . . . . . . . Open DSF 1 | . . . . . . . 1 . . Emergency Access Points 1 | . 1 . . . . . . . . Terminal Index 1 | . 1 . . . . . . . . Alert Level 2 | . . . . . . 2 . . . Unreport Threat 2 | . 1 . . . . 1 . . . Locate Traps 2 | . 1 . . . . 1 . . . Disarm Traps 1 | . 1 . . . . . . . . Dispatch Records 2 | . . . . . . 2 . . . Maintenance Status 1 | . . . . . . 1 . . . Recall Reinforcements 1 | . 1 . . . . . . . . Zone Layout 2 | . 1 . . . . 1 . . . Fabricator Hacks 2 | . . . . . . . 2 . . Network Status 1 | . . . . . . . 1 . . Load Schematic 1 | . . . . . . . 1 . . Repair Station Hacks 9 | . 4 . . . . 5 . . . Scan Component 5 | . 2 . . . . 3 . . . Repair 4 | . 2 . . . . 2 . . . Recycling Unit Hacks 3 | . 3 . . . . . . . . Process 1 | . 1 . . . . . . . . Report Inventory 1 | . 1 . . . . . . . . Retrieve Matter 1 | . 1 . . . . . . . . Scanalyzer 10 | . . . . . . 7 3 . . Insert Component 6 | . . . . . . 4 2 . . Analyze 4 | . . . . . . 3 1 . . Garrison Access Hacks . | . . . . . . . . . . Unauthorized Hacks . | . . . . . . . . . . Terminals . | . . . . . . . . . . Fabricators . | . . . . . . . . . . Repair Stations . | . . . . . . . . . . Recycling Units . | . . . . . . . . . . Scanalyzers . | . . . . . . . . . . Garrison Access . | . . . . . . . . . . Data Cores Recovered . | . . . . . . . . . . Used . | . . . . . . . . . . Hacking Detections 22 | . 8 . . . . 8 6 . . Full Trace Events 4 | . . . . . . 3 1 . . Feedback Events 1 | . . . . . . . 1 . . Corruption 1 | . . . . . . . 1 . . Feedback Blocked . | . . . . . . . . . . Robot Schematics Acquired . | . . . . . . . . . . Robots Built . | . . . . . . . . . . Authchips . | . . . . . . . . . . Time . | . . . . . . . . . . Total Robot Build Rating . | . . . . . . . . . . Part Schematics Acquired 4 | . . . . . . 3 1 . . Parts Built . | . . . . . . . . . . Authchips . | . . . . . . . . . . Time . | . . . . . . . . . . Total Part Build Rating . | . . . . . . . . . . Parts Repaired 4 | . 2 . . . . 2 . . . Time 147 | . 58 . . . . 89 . . . Parts Recycled . | . . . . . . . . . . Recycled Matter 173 | . 173 . . . . . . . . Retrieved Matter 180 | . 180 . . . . . . . . Retrieved Components . | . . . . . . . . . . Parts Scanalyzed 5 | . . . . . . 3 2 . . Part Schematics Acquired 4 | . . . . . . 3 1 . . Parts Damaged 2 | . . . . . . 1 1 . . Bothacking | -11 -10 -9 -9 -9 -8 -8 -7 -7 -7 ------------ Run | Yrd Mat Mat Min Exi Min Mat Fac Low Low Used RIF Installer . | . . . . . . . . . . Robots Hacked 8 | . 2 . . . . 2 2 2 . Non-combat 7 | . 2 . . . . 1 2 2 . Combat 1 | . . . . . . 1 . . . Robot Hacks Applied 12 | . 3 . . . . 2 5 2 . parse_system 2 | . . . . . . 1 . 1 . no_distress 5 | . 1 . . . . 1 2 1 . find_fabricator 2 | . . . . . . . 2 . . find_dsf 1 | . . . . . . . 1 . . find_recycling 1 | . 1 . . . . . . . . find_station 1 | . 1 . . . . . . . . Relay Couplers Released . | . . . . . . . . . . Fabnet Peak Effective % . | . . . . . . . . . . Robots Rewired 1 | . . . . . . . . 1 . Allies Hacked . | . . . . . . . . . . Hacks Repelled . | . . . . . . . . . . Allies | -11 -10 -9 -9 -9 -8 -8 -7 -7 -7 -------- Run | Yrd Mat Mat Min Exi Min Mat Fac Low Low Total Allies 2 | . . . 1 . . . . 1 . Largest Group 1 | . . . 1 1 . . . 1 . Highest-Rated Group 31 | . . . 31 31 . . . 16 . Highest-Rated Ally 31 | . . . 31 31 . . . 16 . Total Orders . | . . . . . . . . . . Ally Attacks 5 | . . . . . . . . 5 . Total Damage 63 | . . . . . . . . 63 . Kills . | . . . . . . . . . . Allies Corrupted . | . . . . . . . . . . Allies Melted . | . . . . . . . . . . Intel | -11 -10 -9 -9 -9 -8 -8 -7 -7 -7 ------- Run | Yrd Mat Mat Min Exi Min Mat Fac Low Low Robot Analysis Total 2 | . 1 . . . . . 1 . . Derelict Logs Recovered 4 | . . . 2 . . . . 1 1 Drone Launches . | . . . . . . . . . . Drone Recoveries . | . . . . . . . . . . Exploration | -11 -10 -9 -9 -9 -8 -8 -7 -7 -7 ------------- Run | Yrd Mat Mat Min Exi Min Mat Fac Low Low Turns Passed 13125 | 129 2502 176 548 1179 409 3381 3128 1015 658 Spaces Moved 6314 | 87 1044 126 442 961 212 1007 1356 687 392 Core 15 | 8 3 . . . . . . . 4 Treads 1020 | 9 268 . . . . 275 468 . . Legs 3459 | . 478 126 442 961 212 466 774 . . Wheels 1820 | 70 295 . . . . 266 114 687 388 Hover . | . . . . . . . . . . Flight . | . . . . . . . . . . Fastest Speed 50 | 50 90 120 120 120 120 95 115 115 115 Average Speed 143 | 96 178 120 120 120 120 137 173 115 126 Slowest Speed 1400 | 160 850 120 120 120 120 320 330 115 1400 Overloaded Moves . | . . . . . . . . . . Propulsion Burnouts . | . . . . . . . . . . Robots Hopped . | . . . . . . . . . . Cave-ins Triggered . | . . . . . . . . . . Exploration Rate (%) 54 | 5 99 24 81 94 37 66 19 70 47 Regions Visited 9 Branch Regions 5 Pre-discovered Areas 2 | . . . 1 1 . . . . . Known Exits Taken 1 | . . . . . . . 1 . . Unknown Exits Taken 8 | 1 1 1 1 1 1 1 . 1 . Scrap Searched 3 | . . . 2 . . . . 1 . Spaces Dug 41 | . 34 . . . . 3 4 . . Terrain Destroyed 59 | . 34 . . . . 20 4 . 1 Melee 7 | . . . . . . 3 4 . . Projectile 1 | . . . . . . . . . 1 AOE 51 | . 34 . . . . 17 . . . Terrain Rammed . | . . . . . . . . . . Walls Destroyed . | . . . . . . . . . . Machines Disabled . | . . . . . . . . . . Actions | -11 -10 -9 -9 -9 -8 -8 -7 -7 -7 --------- Run | Yrd Mat Mat Min Exi Min Mat Fac Low Low Total 9514 | 110 1540 139 453 988 326 2753 1925 803 477 Wait 2331 | . 361 . 3 . 95 1483 346 13 30 Move 6305 | 86 1043 125 441 960 211 1006 1355 686 392 Hop . | . . . . . . . . . . Pick Up 86 | 4 15 3 1 2 . 21 26 13 1 Fast Attach 51 | 8 7 . . 1 . 22 11 1 1 Attach 49 | . 2 2 . . . 13 13 12 7 Detach 10 | 1 2 . . . . 2 3 1 1 Swap 78 | 1 14 . . . . 28 27 8 . Drop 78 | . 10 1 1 3 . 33 29 1 . Fire 375 | 10 78 6 3 . 20 134 53 45 26 Melee 113 | . 5 . . . . 10 62 17 19 Ram . | . . . . . . . . . . Kick 9 | . 2 2 4 . . 1 . . . Crush 1 | . 1 . . . . . . . . Escape Stasis . | . . . . . . . . . . Rewire 28 | . . . . 22 . . . 6 . Trap . | . . . . . . . . . . Miscellaneous . | . . . . . . . . . . Route ------- -11/Scrapyard -10/Materials (discovered 5 exits: [*Mat x3] / [*Min] / [*Sub]) -9/Materials -9/Mines (discovered 3 exits: *Mat / *Exi / [*Zio]) -9/Exiles (discovered 2 exits: [*Min x2]) -8/Mines (discovered 2 exits: *Mat x2) -8/Materials (discovered 2 exits: *Fac x2) -7/Factory (discovered 3 exits: [*Fac] / *Low x2) -7/Lower Caves -7/Lower Caves (discovered 1 exit: [*Fac]) History --------- Turn | Location | Event 4 | -11/Scrapyard | Discovered new exit (range 16) 130 | -11/Scrapyard | Entered Materials 305 | -10/Materials | Build established: Mutant 558 | -10/Materials | Discovered new exit (range 16) 663 | -10/Materials | Discovered new exit (range 6) 1078 | -10/Materials | Discovered new exit (range 13) 1079 | -10/Materials | Core integrity fell below 50% 1513 | -10/Materials | Discovered new exit (range 6) 1745 | -10/Materials | Discovered new exit (range 10) 2486 | -10/Materials | Repaired Com. Wheel 2519 | -10/Materials | Repaired Imp. Aluminum Leg 2632 | -10/Materials | Entered another Materials area 2632 | -9/Materials | Evolved 2 slots: Propulsion x2 2716 | -9/Materials | Met 8R-AWN 2788 | -9/Materials | Discovered new exit (range 14) 2808 | -9/Materials | Entered Mines 2810 | -9/Mines | Followed 8R-AWN into the Mines 2822 | -9/Mines | Escorted by a lone wolf Derelict 2846 | -9/Mines | Learned location of Storage (-9) 2899 | -9/Mines | Discovered new exit (range 5) 2983 | -9/Mines | Learned 2 Materials zone layouts 3131 | -9/Mines | Discovered new exit (range 10) 3145 | -9/Mines | A Derelict revealed a hidden shortcut to a safe place 3256 | -9/Mines | Found a hidden stash of uninstalled traps 3356 | -9/Mines | Entered Exiles 3356 | -9/Exiles | Accompanied by 1 ally 3386 | -9/Exiles | Welcomed by 8R-AWN 3413 | -9/Exiles | Met EX-HEX 3590 | -9/Exiles | Met EX-DEC 3632 | -9/Exiles | Visited The Gauntlet 3834 | -9/Exiles | Learned about 8R-AWN's background 3863 | -9/Exiles | Discovered new exit (range 14) 3941 | -9/Exiles | Met EX-BIN 3983 | -9/Exiles | Learned location of Zion (-7) 4032 | -9/Exiles | Discovered new exit (range 10) 4259 | -9/Exiles | Aligned with FarCom system 4260 | -9/Exiles | Given EX-Vault access code 4299 | -9/Exiles | Opened EX-Vault 4308 | -9/Exiles | Found Prototype Device 4339 | -9/Exiles | Warned to stay clear of 0b10 Research branches 4535 | -9/Exiles | Left Exiles lab with Trap Reconfigurator 4535 | -9/Exiles | Entered Mines 4910 | -8/Mines | Discovered new exit (range 12) 4926 | -8/Mines | Discovered new exit (range 11) 4944 | -8/Mines | Entered Materials 4944 | -8/Materials | Evolved 2 slots: Utility x2 4945 | -8/Materials | Identified Trap Reconfigurator 5682 | -8/Materials | Lost 8 parts (4n1u3w) 5819 | -8/Materials | Repaired Deuterium Engine 5985 | -8/Materials | Build established: Scavenger-Mutant 6249 | -8/Materials | Core integrity fell below 50% 6393 | -8/Materials | Discovered new exit (range 10) 6448 | -8/Materials | Repaired Imp. Assault Rifle 6849 | -8/Materials | Build established: Hacker-Mutant 7070 | -8/Materials | Central database locked down 7070 | -8/Materials | Central database locked down 7707 | -8/Materials | Lost 3 parts (1p1u1w) 7995 | -8/Materials | Build established: Scavenger-Mutant 8264 | -8/Materials | Discovered new exit (range 14) 8325 | -8/Materials | Entered Factory 8325 | -7/Factory | Evolved 2 slots: Utility x1, Weapon x1 8326 | -7/Factory | Identified exit to Lower Caves 8591 | -7/Factory | Build established: Scavenger-Skirmisher 9061 | -7/Factory | Build established: Scavenger-Mutant 9455 | -7/Factory | Discovered new exit (range 11) 9476 | -7/Factory | Discovered exit to Lower Caves (range 15) 10684 | -7/Factory | System corruption reached 10% 10742 | -7/Factory | Lost 11 parts (1p3n4u3w) 11453 | -7/Factory | Entered Lower Caves 11460 | -7/Lower Caves | System corruption reached 30% 11527 | -7/Lower Caves | Destroyed 7 combat bots 11533 | -7/Lower Caves | Lost 3 parts (1u2w) 11546 | -7/Lower Caves | Attracted the attention of an 0b10 outpost 11751 | -7/Lower Caves | Learned 4 Factory zone layouts 11818 | -7/Lower Caves | Core integrity fell below 50% 11873 | -7/Lower Caves | Lost 7 parts (2n3u2w) 12148 | -7/Lower Caves | Discovered new exit (range 9) 12156 | -7/Lower Caves | Attracted the attention of an 0b10 checkpoint 12243 | -7/Lower Caves | Build established: Mutant 12468 | -7/Lower Caves | Entered another Lower Caves area 12536 | -7/Lower Caves | Learned Factory non-interactive machine intel 12676 | -7/Lower Caves | Discovered new exit (range 3) 12983 | -7/Lower Caves | Attracted the attention of an 0b10 base 13038 | -7/Lower Caves | Core integrity fell below 20% 13126 | -7/Lower Caves | Destroyed by G-47 Trooper with Particle Gun Last Messages --------------- 13052_ Acquired 28 matter. 13053_ Broken Wave Gun fries itself beyond repair. 13055_ Imp. Treads fries itself beyond repair. 13057_ /T7PV1ELXH%RILNGH5P:F HLYDTTLO1QJH|F#72J 13057_ Critical hit (Burn: +37). 13062_ Neutrino Core fries itself beyond repair. 13070_ Minigun destroyed. 13076_ Critical hit (Burn: +18). 13088_ System corrupted: Component data lost. 13088_ Critical hit (Burn: +37). 13088_ G-47 Trooper destroyed. 13089_ Adv. Force Field destroyed. 13105_ R=V5W0X